bitfinex/quotes_ETHUSD_20251012
["timestamp","ask_amount","ask_price","bid_price","bid_amount"]
[1760266994928,33.14569125,3828.5,3828.4,0.002]
[1760266996916,33.48644769,3828.5,3828.4,0.002]
[1760266997640,33.81671194,3828.5,3828.4,0.002]
[1760266997791,12.75894225,3828.5,3828.4,0.002]
[1760266997989,14.73284925,3828.5,3828.4,0.002]
[1760266998527,6.70589225,3828.5,3828.4,0.002]
[1760266998927,3.14569125,3828.5,3828.4,0.002]
[1760266999126,10.98321525,3828.5,3828.4,0.002]
[1760266999626,3.14569125,3828.5,3828.4,0.002]
[1760266999828,0.59209125,3828.5,3828.4,0.002]
[1760267001100,16.15904825,3828.5,3828.4,0.002]
[1760267001444,9.80672325,3828.5,3828.4,0.002]
[1760267001629,3.14569125,3828.5,3828.4,0.002]
[1760267001821,2.7359,3828.5,3828.4,0.002]
[1760267003719,0.8159,3828.5,3828.4,0.002]
[1760267005218,7.429315,3828.5,3828.4,0.002]
[1760267005559,3.082875,3828.5,3828.4,0.002]
[1760267006527,21.240902,3828.5,3828.4,0.002]
[1760267006735,11.007994,3828.5,3828.4,0.002]
[1760267006939,11.34875044,3828.5,3828.4,0.002]
[1760267007527,1.15665644,3828.5,3828.4,0.002]
[1760267007723,33.07665644,3828.5,3828.4,0.002]
[1760267008251,33.40692069,3828.5,3828.4,0.002]
[1760267008563,3.40692069,3828.5,3828.4,0.002]
[1760267008764,33.40692069,3828.5,3828.4,0.002]
[1760267011754,3.40692069,3828.5,3828.4,0.002]
[1760267012029,33.40692069,3828.5,3828.4,0.002]
[1760267012532,23.29778869,3828.5,3828.4,0.002]
[1760267012754,33.40692069,3828.5,3828.4,0.002]
[1760267013330,30.68658969,3828.5,3828.4,0.002]
[1760267013760,33.40692069,3828.5,3828.4,0.002]
[1760267014331,12.236305,3828.5,3828.4,0.002]
[1760267014659,28.193392,3828.5,3828.4,0.002]
[1760267015760,33.14573262,3828.5,3828.4,0.002]
[1760267016464,32.73922962,3828.5,3828.4,0.002]
[1760267016768,33.14573262,3828.5,3828.4,0.002]
[1760267016957,29.69458562,3828.5,3828.4,0.002]
[1760267017966,33.25056774,3828.5,3828.4,0.002]
[1760267018366,33.14573262,3828.5,3828.4,0.002]
[1760267018741,3.81675331,3828.5,3828.4,0.002]
[1760267018951,33.81675331,3828.5,3828.4,0.002]
[1760267021660,33.40692069,3828.5,3828.4,0.002]
[1760267023057,33.07665644,3828.5,3828.4,0.002]
[1760267024667,33.48654737,3828.5,3828.4,0.002]
[1760267028500,33.25064859,3828.5,3828.4,0.002]
[1760267031090,32.84075766,3828.5,3828.4,0.002]
[1760267032304,2.84075766,3828.5,3828.4,0.002]
[1760267032481,32.84075766,3828.5,3828.4,0.002]
[1760267033879,33.25063313,3828.5,3828.4,0.002]
[1760267034482,3.25063313,3828.5,3828.4,0.002]
[1760267034681,33.25063313,3828.5,3828.4,0.002]
[1760267041627,3.25063313,3828.5,3828.4,0.002]
[1760267041790,33.92171679,3828.5,3828.4,0.002]
[1760267044913,2.5536,3828.4,3828.3,0.002]
[1760267045103,33.22468366,3828.4,3828.3,0.002]
[1760267045308,33.40698366,3828.4,3828.3,0.002]
[1760267045626,33.51183664,3828.4,3828.3,0.002]
[1760267046241,0.6336,3828.2,3828.1,0.002]
[1760267046403,33.22468366,3828.2,3828.1,0.002]
[1760267046636,33.40698366,3828.2,3828.1,0.002]
[1760267046838,33.22468366,3828.1,3827.6,0.002]
[1760267047067,33.45669007,3828.1,3827.6,0.002]
[1760267047271,2.5536,3827.8,3827.6,0.002]
[1760267047569,3.00539007,3828.1,3827.6,0.002]
[1760267047570,19.681704,3827.7,3827.6,0.002]
[1760267047755,31.974601,3827.7,3827.6,0.002]
[1760267047931,32.76110769,3827.7,3827.6,0.002]
[1760267048768,33.75440669,3827.7,3827.6,0.002]
[1760267048971,34.42549035,3827.7,3827.6,0.002]
[1760267049472,34.83538644,3827.7,3827.6,0.002]
[1760267049666,2.5536,3827.6,3825.1,14.5]
[1760267049868,0.6336,3827.2,3825.1,14.5]
[1760267050070,0.6336,3827.0,3825.1,14.5]
[1760267050302,0.6336,3826.6,3825.1,14.5]
[1760267050572,0.6336,3826.4,3825.1,14.5]
[1760267050770,0.6336,3826.2,3825.1,14.5]
[1760267051069,0.6336,3826.0,3825.1,14.5]
[1760267051368,0.1828,3825.9,3825.1,14.5]
[1760267052775,0.1786,3825.8,3825.1,14.5]
[1760267054790,0.2202,3825.9,3825.1,14.5]
[1760267054991,0.1786,3825.7,3825.1,14.5]
[1760267055195,0.57505235,3826.0,3825.1,14.5]
[1760267055390,0.1651,3826.0,3825.1,14.5]
[1760267055585,0.1651,3825.9,3825.1,14.5]
[1760267055895,0.40995652,3825.8,3825.1,14.5]
[1760267056389,0.7987,3825.7,3824.8,1e-08]
[1760267057472,2.5536,3825.5,3824.8,1e-08]
[1760267057723,0.6336,3825.3,3824.8,1e-08]
[1760267058208,0.6336,3825.1,3824.8,1e-08]
[1760267058566,0.6336,3824.9,3824.8,1e-08]
[1760267059095,0.1651,3824.9,3824.8,0.00200001]
[1760267062973,2.7187,3824.9,3824.8,0.00200001]
[1760267063200,5.890642,3824.9,3824.8,0.00200001]
[1760267063898,21.26889737,3824.9,3824.8,0.00200001]
[1760267064791,33.12876937,3824.9,3824.8,0.00200001]
[1760267065094,23.27700637,3824.9,3824.8,0.00200001]
[1760267065812,6.59373637,3824.9,3824.8,0.00200001]
[1760267068711,27.64352137,3824.9,3824.8,0.00200001]
[1760267069013,18.99862903,3824.9,3824.8,0.00200001]
[1760267069210,3.12876937,3824.9,3824.8,0.00200001]
[1760267069425,0.57516937,3824.9,3824.8,0.00200001]
[1760267071115,0.1651,3824.9,3824.8,0.00200001]
[1760267072428,0.6336,3825.4,3824.8,0.00200001]
[1760267072631,0.435,3825.5,3824.8,0.00200001]
[1760267072784,0.435,3825.5,3824.8,0.43700001]
[1760267072978,0.1651,3825.5,3824.8,14.50200001]
[1760267073596,0.1651,3825.5,3824.8,0.00200001]
[1760267075394,0.41000058,3825.4,3824.8,0.00200001]
[1760267075906,0.1651,3825.3,3824.8,0.00200001]
[1760267076515,0.41000058,3825.4,3824.8,0.00200001]
[1760267077413,0.41000058,3825.4,3824.8,0.43700001]
[1760267078098,0.41000058,3825.4,3824.9,14.5]
[1760267078298,0.41000058,3825.4,3825.0,0.435]
[1760267078506,0.41000058,3825.4,3824.8,0.00200001]
[1760267078710,0.41000058,3825.4,3825.1,0.435]
[1760267078909,0.41000058,3825.4,3825.1,14.935]
[1760267080028,0.1651,3825.7,3825.1,14.5]
[1760267080429,0.001,3827.6,3825.2,0.435]
[1760267080430,0.1658,3826.8,3825.2,0.435]
[1760267080597,0.001,3827.6,3825.2,0.435]
[1760267080598,0.2324,3827.2,3825.2,0.435]
[1760267080798,0.1671,3827.2,3825.2,1.0686]
[1760267081110,0.6336,3827.1,3825.3,0.435]
[1760267081317,0.1671,3827.4,3825.3,0.435]
[1760267081717,0.001,3827.6,3825.3,0.435]
[1760267082017,0.1671,3827.5,3825.4,14.5]
[1760267082220,0.8007,3827.4,3825.5,0.435]
[1760267082422,0.1671,3827.3,3825.5,0.435]
[1760267082625,0.1671,3827.2,3825.5,0.435]
[1760267082803,0.1671,3827.2,3825.6,14.5]
[1760267083206,0.1671,3827.2,3825.7,0.4673]
[1760267083409,0.4098423,3827.3,3825.7,0.4673]
[1760267083829,0.4098423,3827.3,3826.7,14.5]
[1760267084044,0.4098423,3827.3,3826.8,0.6999]
[1760267084347,0.001,3827.6,3826.9,0.4673]
[1760267084509,0.001,3827.6,3826.9,0.8771423]
[1760267084904,0.001,3827.6,3827.0,0.4673]
[1760267086222,0.001,3827.6,3827.1,14.5]
[1760267086807,0.001,3827.6,3827.2,0.4673]
[1760267088134,0.001,3827.6,3827.3,0.4673]
[1760267088642,0.001,3827.6,3827.1,14.5]
[1760267088836,0.001,3827.6,3827.2,0.4673]
[1760267089239,0.001,3827.6,3827.3,0.4673]
[1760267090341,0.001,3827.6,3827.4,0.4673]
[1760267090739,0.001,3827.6,3827.5,0.4673]
[1760267092443,0.001,3827.6,3827.5,14.9673]
[1760267093851,0.001,3827.6,3827.3,0.4673]
[1760267094053,0.001,3827.6,3826.9,0.57210491]
[1760267094361,0.001,3827.6,3827.3,14.5]
[1760267094746,0.001,3827.6,3827.4,0.4673]
[1760267095135,0.001,3827.6,3827.5,0.4361]
[1760267096864,0.001,3827.6,3827.5,0.4381]
[1760267097764,0.001,3827.6,3827.5,14.9381]
[1760267098272,0.001,3827.6,3827.5,14.502]
[1760267098437,0.001,3827.6,3827.5,14.9381]
[1760267101475,0.001,3827.6,3827.5,14.502]
[1760267101652,0.001,3827.6,3827.5,0.002]
[1760267104051,0.41079317,3827.6,3827.5,0.002]
[1760267106799,0.60329317,3827.6,3827.5,0.002]
[1760267107098,1.23689317,3827.6,3827.5,0.002]
[1760267108577,1.04439317,3827.6,3827.5,0.002]
[1760267109597,0.41079317,3827.6,3827.5,0.002]
[1760267111072,0.001,3827.6,3827.5,0.002]
[1760267114213,0.4107409,3827.6,3827.5,0.002]
[1760267115009,0.4107409,3827.6,3827.5,0.4381]
[1760267115582,0.001,3827.6,3827.5,0.4381]
[1760267116226,0.001,3827.6,3827.5,14.9381]
[1760267132950,0.193,3827.6,3827.5,0.002]
[1760267133141,4.98811586,3827.6,3827.5,0.002]
[1760267133313,2.85143086,3827.6,3827.5,0.002]
[1760267133948,6.68813279,3827.6,3827.5,0.002]
[1760267134335,3.06924779,3827.6,3827.5,0.002]
[1760267134536,0.41081693,3827.6,3827.5,0.4322]
[1760267134742,0.001,3827.6,3827.5,0.4322]
[1760267135143,0.001,3827.6,3827.5,14.9322]
[1760267135728,0.001,3827.6,3827.5,0.002]
[1760267135972,0.1925,3827.6,3827.5,0.002]
[1760267136316,0.60226385,3827.6,3827.5,0.002]
[1760267140959,0.1925,3827.6,3827.5,0.002]
[1760267142868,0.001,3827.6,3827.5,0.002]
[1760267143092,0.001,3827.6,3827.5,0.4322]
[1760267144352,0.4097,3827.6,3827.5,0.002]
[1760267144555,1.0433,3827.6,3827.5,0.002]
[1760267144766,0.001,3827.6,3827.5,0.002]
[1760267145500,0.41074978,3827.6,3827.5,0.002]
[1760267146660,0.41074978,3827.6,3827.5,0.457]
[1760267146985,0.41074978,3827.6,3827.5,0.002]
[1760267150388,0.001,3827.6,3827.5,0.457]
[1760267155607,0.001,3827.6,3827.5,0.002]
[1760267156112,0.001,3827.6,3827.5,0.4741]
[1760267158518,0.001,3827.6,3827.5,0.002]
[1760267159086,0.001,3827.6,3827.5,0.4741]
[1760267159587,0.001,3827.6,3827.5,0.002]
[1760267159980,0.41072469,3827.6,3827.5,0.002]
[1760267160916,0.001,3827.6,3827.5,0.002]
[1760267161122,0.4097,3827.6,3827.5,0.002]
[1760267163208,0.001,3827.6,3827.5,0.002]
[1760267163917,0.41073626,3827.6,3827.5,0.002]
[1760267164385,0.41073626,3827.6,3827.5,0.4741]
[1760267164587,0.001,3827.6,3827.5,0.4741]
[1760267167310,0.001,3828.0,3827.5,0.4741]
[1760267167489,0.001,3828.2,3827.6,0.6336]
[1760267167814,0.001,3828.4,3828.1,0.219]
[1760267168312,0.001,3828.4,3828.2,0.4721]
[1760267176531,0.001,3828.4,3828.3,0.764]
[1760267176914,0.001,3828.4,3828.3,1.2361]
[1760267182615,0.001,3828.4,3828.3,20.048316]
[1760267182907,0.001,3828.4,3828.3,15.302722]
[1760267183108,0.001,3828.4,3828.3,7.892956]
[1760267183641,0.001,3828.4,3828.3,6.690847]
[1760267183840,0.001,3829.7,3828.5,30.6336]
[1760267184045,0.001,3829.7,3828.5,25.723944]
[1760267184247,0.001,3829.7,3828.5,24.266642]
[1760267184544,0.001,3829.7,3828.5,9.358084]
[1760267185650,0.001,3829.7,3828.5,29.613629]
[1760267185839,0.001,3829.7,3828.5,26.330624]
[1760267186442,0.001,3829.7,3828.7,30.6336]
[1760267186630,0.001,3829.7,3828.7,33.68399999]
[1760267186953,0.001,3829.7,3828.9,32.5536]
[1760267187112,0.001,3829.7,3828.9,27.813502]
[1760267187313,0.001,3829.7,3828.9,28.381802]
[1760267187516,0.001,3829.7,3828.9,30.092095]
[1760267187947,0.001,3829.7,3828.9,28.499495]
[1760267188149,0.001,3829.7,3829.0,10.047424]
[1760267188451,0.001,3829.7,3829.0,3.135083]
[1760267188617,0.001,3829.7,3829.0,31.764273]
[1760267189036,0.001,3829.7,3829.0,16.879584]
[1760267189243,0.001,3829.7,3829.0,12.897519]
[1760267189457,0.001,3829.7,3829.0,5.713087]
[1760267189660,0.001,3829.7,3829.0,13.888336]
[1760267190629,0.001,3829.7,3829.0,10.852979]
[1760267190858,0.001,3829.7,3829.0,10.46681]
[1760267191561,0.001,3829.7,3829.0,24.96681]
[1760267191730,0.001,3829.7,3829.0,19.820346]
[1760267192036,0.001,3829.7,3829.0,22.7315]
[1760267192241,0.001,3829.7,3829.0,15.5715]
[1760267192442,0.001,3829.7,3829.0,17.4915]
[1760267194452,0.001,3829.7,3829.0,38.81776]
[1760267195035,0.001,3829.7,3829.1,2.5536]
[1760267195236,0.001,3829.7,3829.1,26.145421]
[1760267195557,0.001,3829.7,3829.4,21.589368]
[1760267195759,0.001,3829.7,3829.4,23.602436]
[1760267195971,0.001,3829.7,3829.4,29.366154]
[1760267196259,0.001,3829.7,3829.5,32.5536]
[1760267196451,0.001,3829.7,3829.5,32.9915]
[1760267196640,0.001,3829.7,3829.6,32.9915]
[1760267197061,0.001,3829.7,3829.6,47.4915]
[1760267197881,0.001,3829.7,3829.6,32.577665]
[1760267198280,0.001,3829.7,3829.6,41.432074]
[1760267198486,0.001,3829.7,3829.6,38.599142]
[1760267198688,0.001,3829.7,3829.6,38.70379938]
[1760267198982,0.001,3829.7,3829.6,20.84146838]
[1760267199186,0.001,3829.7,3829.6,17.59615738]
[1760267199383,0.001,3829.7,3829.6,26.69615738]
[1760267199788,0.001,3829.7,3829.6,17.59615738]
[1760267199991,0.001,3829.7,3829.6,17.4915]
[1760267201690,0.001,3829.7,3829.6,14.9379]
[1760267201889,0.001,3829.7,3829.6,17.4915]
[1760267203257,0.001,3829.7,3829.6,30.069914]
[1760267203483,0.001,3829.7,3829.6,26.652516]
[1760267204305,0.001,3829.7,3829.6,35.692305]
[1760267204876,0.001,3829.7,3829.6,31.041386]
[1760267205278,0.001,3829.7,3829.6,35.317281]
[1760267205478,0.001,3829.7,3829.6,35.42193811]
[1760267205973,0.001,3829.7,3829.6,35.55233811]
[1760267206172,0.001,3829.7,3829.6,40.07043111]
[1760267206605,0.001,3829.7,3829.6,39.07193111]
[1760267206805,0.001,3829.7,3829.6,26.24092011]
[1760267207377,0.001,3829.7,3829.6,28.23392011]
[1760267207907,0.001,3829.7,3829.6,26.80985511]
[1760267209316,0.001,3829.7,3829.6,17.72655711]
[1760267209612,0.001,3829.7,3829.6,39.93281911]
[1760267209818,0.001,3829.7,3829.6,28.69111311]
[1760267209974,0.001,3829.7,3829.6,28.04611311]
[1760267212603,0.001,3829.7,3829.6,38.22078911]
[1760267213739,0.001,3829.7,3829.6,43.38038911]
[1760267214739,0.001,3829.7,3829.6,53.65874811]
[1760267215330,0.001,3829.7,3829.6,47.41128611]
[1760267215523,0.001,3829.7,3829.6,50.01028611]
[1760267216534,0.001,3829.7,3829.6,26.82655711]
[1760267216836,0.001,3829.7,3829.6,54.36718511]
[1760267217238,0.001,3829.7,3829.6,54.36918511]
[1760267217609,0.001,3829.7,3829.6,54.03488811]
[1760267218722,0.001,3829.7,3829.6,54.42888811]
[1760267219443,0.001,3829.7,3829.6,50.49648811]
[1760267219630,0.001,3829.7,3829.6,50.07672911]
[1760267220246,0.001,3829.7,3829.6,49.44468311]
[1760267220731,0.001,3829.7,3829.6,53.38024011]
[1760267221433,0.001,3829.9,3829.8,26.151568]
[1760267221640,0.001,3829.9,3829.8,37.171568]
[1760267221958,0.001,3829.9,3829.8,37.771868]
[1760267222159,0.001,3829.9,3829.8,52.271868]
[1760267222330,0.001,3831.2,3829.9,23.039359]
[1760267222663,0.001,3831.2,3829.9,23.509259]
[1760267222815,0.001,3831.2,3829.9,24.971759]
[1760267223016,0.001,3831.2,3829.9,23.509259]
[1760267223217,0.001,3831.2,3829.9,38.11390762]
[1760267223762,0.001,3831.2,3829.9,17.62814862]
[1760267224068,0.001,3831.2,3829.9,38.11240762]
[1760267224436,0.001,3831.2,3829.9,36.28186562]
[1760267224822,0.001,3831.2,3829.9,39.46463262]
[1760267225742,0.001,3831.2,3829.9,39.47902862]
[1760267225949,0.001,3831.2,3830.0,31.144949]
[1760267226119,0.001,3831.2,3830.0,28.832619]
[1760267226328,0.001,3831.2,3830.3,0.6336]
[1760267226653,0.001,3831.2,3831.1,0.8953]
[1760267226851,0.001,3832.0,3831.5,0.6336]
[1760267227055,0.001,3832.2,3831.7,0.6336]
[1760267227254,0.001,3832.2,3832.1,34.565381]
[1760267227458,0.40900935,3835.4,3832.3,30.0]
[1760267227662,0.40900935,3835.4,3832.4,0.6336]
[1760267227824,0.40900935,3835.4,3832.5,2.684]
[1760267228019,0.40900935,3835.4,3832.5,1.2339]
[1760267228323,0.40900935,3835.4,3832.5,17.6539]
[1760267228529,0.2355,3836.1,3832.5,17.6539]
[1760267230250,0.6336,3836.3,3832.5,17.6539]
[1760267230969,0.2355,3836.4,3832.5,42.086194]
[1760267231151,0.6336,3836.6,3832.5,42.086194]
[1760267231743,0.4649,3836.9,3832.9,2.5536]
[1760267231981,0.4649,3836.9,3832.9,0.6336]
[1760267232288,0.4649,3836.9,3834.7,0.1296]
[1760267232470,0.4649,3836.9,3835.2,14.5]
[1760267232789,0.4649,3836.9,3835.3,0.4699]
[1760267232790,0.6336,3836.8,3835.3,0.4699]
[1760267232990,0.4679,3836.7,3834.8,0.2297]
[1760267233577,0.4679,3836.7,3835.4,14.5]
[1760267233876,0.4679,3836.6,3834.8,0.2297]
[1760267234773,0.4679,3836.6,3835.5,14.5]
[1760267234972,0.40878788,3836.2,3835.5,14.5]
[1760267235469,0.87668788,3836.2,3835.5,14.5]
[1760267235977,0.40878788,3836.2,3835.5,14.5]
[1760267236878,0.4679,3836.1,3835.5,14.5]
[1760267237790,0.40878788,3836.2,3835.5,14.5]
[1760267237949,0.4679,3836.0,3834.8,0.2297]
[1760267238151,0.40878788,3836.2,3834.8,0.6759]
[1760267238152,0.4679,3836.1,3834.8,0.6759]
[1760267238358,0.4679,3836.1,3834.9,14.9462]
[1760267238591,0.40888964,3836.0,3835.0,0.4462]
[1760267238890,0.6996,3837.0,3835.0,0.4462]
[1760267239068,0.6336,3836.9,3835.0,0.4462]
[1760267239267,0.40880902,3836.3,3835.1,14.5]
[1760267239472,0.40880902,3836.3,3835.2,0.4462]
[1760267240091,0.40880902,3836.3,3835.3,14.5]
[1760267240589,0.40880902,3836.3,3835.4,0.4462]
[1760267240894,0.4679,3836.6,3835.4,0.4462]
[1760267241285,0.4679,3836.6,3835.5,14.5]
[1760267241473,0.4679,3836.6,3835.6,0.4462]
[1760267242094,0.4679,3836.6,3835.7,14.5]
[1760267242500,0.2317,3837.5,3835.8,0.4462]
[1760267242798,0.4679,3837.6,3835.8,0.4462]
[1760267242961,0.4679,3838.1,3835.9,0.1296]
[1760267243162,0.4679,3838.1,3836.5,14.5]
[1760267243364,0.4679,3838.1,3836.6,0.4462]
[1760267243993,0.4679,3837.9,3836.7,14.5]
[1760267244789,0.4087125,3837.7,3836.7,14.5]
[1760267245387,0.4087125,3837.7,3836.8,0.4462]
[1760267246105,0.4087125,3837.7,3836.9,14.5]
[1760267249591,0.8732125,3837.7,3836.9,14.5]
[1760267250914,0.4645,3837.7,3836.9,14.5]
[1760267252311,0.4645,3837.6,3836.9,14.5]
[1760267252516,0.4645,3837.5,3836.9,14.5]
[1760267253295,0.4655,3837.7,3836.9,14.5]
[1760267254118,0.40871305,3837.6,3836.9,14.5]
[1760267254611,0.40871305,3837.6,3837.0,0.4462]
[1760267256410,0.001,3837.7,3837.0,0.4462]
[1760267257414,0.001,3837.7,3837.1,14.5]
[1760267257791,0.001,3837.7,3837.2,0.4462]
[1760267258390,0.001,3837.7,3837.3,14.5]
[1760267258893,0.001,3837.7,3837.4,0.4462]
[1760267259093,0.001,3837.7,3837.6,0.1296]
[1760267259510,0.001,3837.7,3837.6,14.6296]
[1760267259709,0.001,3837.7,3837.6,14.9462]
[1760267262697,0.001,3837.7,3837.6,15.5798]
[1760267263014,0.001,3837.7,3837.6,17.4998]
[1760267263392,0.001,3838.1,3837.9,0.6336]
[1760267263821,0.001,3838.1,3838.0,1.0758]
[1760267264000,0.001,3838.1,3838.0,17.4958]
[1760267266007,0.001,3838.1,3838.0,17.91895954]
[1760267267319,0.001,3838.1,3838.0,22.38456754]
[1760267268090,0.001,3838.5,3838.1,2.5536]
[1760267268291,0.001,3838.5,3838.1,1.0758]
[1760267268497,0.001,3838.5,3838.0,0.42315954]
[1760267268498,0.001,3838.5,3838.3,0.6336]
[1760267268832,0.001,3838.5,3838.4,20.717822]
[1760267268997,0.001,3838.5,3838.4,17.0536]
[1760267269202,0.001,3838.5,3838.4,17.4958]
[1760267270424,0.001,3838.5,3838.4,27.019269]
[1760267271310,0.001,3838.5,3838.4,26.278086]
[1760267271720,0.001,3838.5,3838.4,26.407686]
[1760267272036,0.001,3838.5,3838.4,24.603657]
[1760267272242,0.001,3838.9,3838.5,11.475221]
[1760267272445,0.001,3838.9,3838.7,0.6336]
[1760267272641,0.001,3838.9,3838.8,0.1296]
[1760267272842,0.001,3838.9,3838.8,1.2054]
[1760267273060,0.001,3838.9,3838.8,18.04855954]
[1760267276741,0.001,3838.9,3838.8,41.56566754]
[1760267277050,0.001,3838.9,3838.8,28.87703554]
[1760267277453,0.001,3838.9,3838.8,21.59269754]
[1760267277658,0.001,3838.9,3838.8,23.23069754]
[1760267278662,0.001,3838.9,3838.8,30.52500854]
[1760267278826,0.42315954,3840.4,3838.9,2.5536]
[1760267279160,0.02315954,3840.4,3840.3,0.9787]
[1760267279357,0.02315954,3840.4,3840.3,1.4159]
[1760267279525,0.02315954,3840.4,3840.3,17.8359]
[1760267279926,0.02315954,3840.4,3840.3,18.2953]
[1760267281534,0.02315954,3840.4,3840.3,17.8359]
[1760267285478,0.02315954,3840.4,3840.3,15.9159]
[1760267286463,0.02315954,3840.4,3840.3,15.2823]
[1760267287362,0.02315954,3840.4,3840.3,14.8451]
[1760267287567,0.02315954,3840.4,3840.3,15.2823]
[1760267287748,0.02315954,3840.4,3840.3,15.1527]
[1760267287950,0.02315954,3840.4,3840.3,14.7155]
[1760267288261,0.02315954,3840.4,3840.3,14.5]
[1760267288464,0.02315954,3840.4,3839.6,0.1296]
[1760267288647,0.02315954,3840.4,3839.5,0.6527]
[1760267289044,0.02415954,3840.4,3839.5,0.6527]
[1760267289366,0.02415954,3840.4,3839.6,14.5]
[1760267290275,0.4594,3840.3,3839.6,14.5]
[1760267290980,0.02415954,3840.4,3839.6,14.5]
[1760267291165,0.4594,3840.3,3839.6,14.5]
[1760267291364,0.4594,3840.2,3839.6,14.5]
[1760267291565,0.02415954,3840.4,3839.6,14.5]
[1760267291566,0.4594,3840.1,3839.6,14.5]
[1760267291886,0.4594,3840.0,3839.6,14.5]
[1760267292086,0.4594,3839.9,3839.6,14.5]
[1760267292684,0.685,3839.8,3838.8,0.2155]
[1760267292984,0.685,3839.8,3838.5,0.6527]
[1760267293192,0.4594,3839.7,3838.6,14.5]
[1760267293983,0.40846748,3839.9,3838.7,0.4372]
[1760267294285,0.2256,3839.8,3838.5,0.2155]
[1760267294470,0.4594,3839.7,3838.5,0.2155]
[1760267294680,0.4594,3839.7,3838.8,14.5]
[1760267294866,0.2256,3839.8,3838.8,14.5]
[1760267295070,0.4594,3839.6,3838.8,14.5]
[1760267295269,0.4594,3839.5,3838.8,14.5]
[1760267296862,0.2256,3839.8,3838.8,14.5]
[1760267297062,0.40849053,3839.5,3838.8,14.5]
[1760267298672,0.4594,3839.4,3838.8,14.5]
[1760267298862,0.4594,3839.3,3838.8,14.5]
[1760267299060,0.4594,3839.2,3838.8,14.5]
[1760267299270,0.4594,3839.1,3838.8,14.5]
[1760267299485,0.4594,3839.0,3838.8,14.5]
[1760267299689,0.4594,3838.9,3838.8,14.5]
[1760267300265,0.4594,3838.9,3838.4,0.002]
[1760267300988,1.093,3839.7,3838.4,0.002]
[1760267301294,0.40858136,3838.8,3838.5,0.4372]
[1760267301591,0.4594,3839.7,3838.4,0.002]
[1760267301798,0.4594,3839.6,3838.6,14.5]
[1760267302489,0.40845976,3839.8,3838.7,0.4372]
[1760267304079,0.4594,3839.7,3838.6,14.5]
[1760267304477,0.40845976,3839.8,3838.6,14.5]
[1760267304670,0.4594,3839.6,3838.6,14.5]
[1760267305069,0.4638,3839.5,3838.6,14.5]
[1760267305276,0.4638,3839.4,3838.6,14.5]
[1760267306948,0.4638,3839.4,3838.6,14.502]
[1760267307903,0.40845976,3839.8,3838.7,0.4452]
[1760267310417,0.4638,3839.7,3838.6,14.502]
[1760267310717,0.4638,3839.6,3838.6,14.502]
[1760267310912,0.4638,3839.5,3838.6,14.502]
[1760267311218,0.4638,3839.4,3838.6,14.502]
[1760267311413,0.87233416,3839.3,3838.6,14.502]
[1760267311629,0.4638,3839.2,3838.6,14.502]
[1760267311848,0.4638,3839.1,3838.6,14.502]
[1760267312155,0.4638,3839.0,3838.6,14.502]
[1760267312328,0.4638,3838.9,3838.6,14.502]
[1760267313203,0.6336,3839.2,3838.6,14.502]
[1760267313420,0.4638,3839.1,3838.6,14.502]
[1760267313624,0.4638,3839.0,3838.6,0.002]
[1760267314036,0.4638,3838.9,3838.6,0.002]
[1760267315361,0.6336,3839.2,3838.6,0.002]
[1760267315658,0.4638,3838.8,3838.6,0.002]
[1760267317185,0.4638,3838.7,3838.6,0.002]
[1760267317650,1.0974,3839.2,3838.6,0.002]
[1760267319558,0.4638,3839.1,3838.6,0.002]
[1760267320061,0.4638,3839.0,3838.6,0.002]
[1760267320856,0.6336,3839.2,3838.6,0.002]
[1760267321068,0.4638,3838.9,3838.6,0.002]
[1760267321635,0.6336,3839.2,3838.6,0.002]
[1760267321836,0.4638,3838.8,3838.6,0.002]
[1760267323138,0.40853416,3839.3,3838.6,0.002]
[1760267323566,0.4623,3839.2,3838.6,0.002]
[1760267324693,0.40853416,3839.3,3838.6,0.002]
[1760267331770,1.3321,3839.9,3838.7,0.4452]
[1760267331978,0.40849608,3839.8,3838.7,0.4452]
[1760267332574,0.4623,3839.7,3838.8,14.5]
[1760267332760,0.40849608,3839.8,3838.8,14.5]
[1760267333076,0.40849608,3839.8,3838.9,0.4452]
[1760267333746,0.40849608,3839.8,3839.0,14.5]
[1760267334981,0.4414,3839.7,3839.0,14.5]
[1760267335269,0.40849608,3839.8,3839.0,14.5]
[1760267335571,0.40849608,3839.8,3839.1,0.4392]
[1760267336142,0.6336,3839.7,3839.2,14.5]
[1760267336373,0.4414,3839.6,3838.6,0.002]
[1760267337676,0.6336,3839.5,3838.6,0.002]
[1760267338043,1.04215026,3839.3,3838.6,0.002]
[1760267338577,0.4414,3839.2,3838.6,0.002]
[1760267338773,0.6336,3839.1,3838.6,0.002]
[1760267339278,0.4414,3839.0,3838.6,0.002]
[1760267340169,0.4414,3838.9,3838.6,0.002]
[1760267340843,0.6336,3838.8,3838.6,0.002]